fUSD/lending_fUSD_20240220
["ID","MTS","AMOUNT","RATE_DAILY","PERIOD"]
[314616578,1708452660176,-642.3,0.00047397,30]
[314616579,1708452660185,-500.0,0.00047397,30]
[314616580,1708452660194,-333.44,0.00047397,2]
[314616581,1708452660204,-500.0,0.00047397,30]
[314616582,1708452660213,-501.63,0.00047397,30]
[314616583,1708452660223,-500.0,0.00047397,30]
[314616584,1708452660232,-500.0,0.00047397,30]
[314616585,1708452660241,-500.0,0.00047397,30]
[314616586,1708452660251,-500.0,0.00047397,30]
[314616587,1708452660263,-480.96,0.00047397,30]
[314616588,1708452660273,-500.0,0.00047397,30]
[314616589,1708452660283,-500.0,0.00047397,30]
[314616590,1708452660292,-500.0,0.00047397,30]
[314616591,1708452660302,-500.0,0.00047397,30]
[314616592,1708452660311,-477.28,0.00047397,30]
[314616593,1708452660321,-500.0,0.00047397,30]
[314616594,1708452660332,-500.0,0.00047397,30]
[314616595,1708452660342,-500.0,0.00047397,30]
[314616596,1708452660351,-500.0,0.00047397,30]
[314616597,1708452660361,-500.0,0.00047397,30]
[314616598,1708452660370,-500.0,0.00047397,30]
[314616599,1708452660380,-500.0,0.00047397,2]
[314616600,1708452660390,-190.00921167,0.00047397,30]
[314616601,1708452660400,-500.0,0.00047397,30]
[314616602,1708452660409,-500.0,0.00047397,30]
[314616603,1708452660418,-500.0,0.00047397,2]
[314616604,1708452660428,-500.0,0.00047397,30]
[314616605,1708452660437,-500.0,0.00047397,30]
[314616606,1708452660446,-500.0,0.00047397,30]
[314616607,1708452660457,-500.0,0.00047397,30]
[314616608,1708452660467,-500.0,0.00047397,30]
[314616609,1708452660477,-500.0,0.00047397,30]
[314616610,1708452660486,-500.0,0.00047397,30]
[314616611,1708452660496,-548.65,0.00047397,30]
[314616612,1708452660505,-500.0,0.00047397,30]
[314616613,1708452660516,-500.0,0.00047397,30]
[314616614,1708452660526,-594.59,0.00047397,30]
[314616615,1708452660535,-500.0,0.00047397,30]
[314616616,1708452660544,-500.0,0.00047397,30]
[314616617,1708452660554,-500.0,0.00047397,30]
[314616618,1708452660563,-500.0,0.00047397,30]
[314616619,1708452660572,-603.04,0.00047397,30]
[314616620,1708452660582,-500.0,0.00047397,30]
[314616621,1708452660591,-268.16,0.00047397,30]
[314616622,1708452660601,-500.0,0.00047397,30]
[314616623,1708452660610,-500.0,0.00047397,30]
[314616624,1708452660620,-173.7254382,0.00047397,30]
[314616625,1708452660629,-500.0,0.00047397,30]
[314616626,1708452660639,-500.0,0.00047397,30]
[314616627,1708452660649,-500.0,0.00047397,30]
[314616628,1708452660658,-501.50575788,0.00047397,30]
[314616629,1708452660668,-500.0,0.00047397,30]
[314616630,1708452660678,-500.0,0.00047397,30]
[314616631,1708452660688,-500.0,0.00047397,30]
[314616632,1708452660698,-466.45669285,0.00047397,30]
[314616633,1708452660707,-500.0,0.00047397,30]
[314616634,1708452660717,-712.99,0.00047397,30]
[314616635,1708452660727,-500.0,0.00047397,30]
[314616636,1708452660737,-500.0,0.00047397,30]
[314616637,1708452660747,-500.0,0.00047397,30]
[314616638,1708452660756,-500.0,0.00047397,30]
[314616639,1708452660768,-500.0,0.00047397,30]
[314616640,1708452660777,-1447.92,0.00047397,30]
[314616641,1708452660786,-500.0,0.00047397,30]
[314616642,1708452660796,-500.0,0.00047397,30]
[314616643,1708452660805,-763.46,0.00047397,30]
[314616644,1708452660814,-500.0,0.00047397,30]
[314616645,1708452660824,-500.0,0.00047397,30]
[314616646,1708452660833,-500.0,0.00047397,30]
[314616647,1708452660843,-500.0,0.00047397,30]
[314616648,1708452660852,-500.0,0.00047397,30]
[314616649,1708452660862,-500.0,0.00047397,30]
[314616650,1708452660872,-500.0,0.00047397,30]
[314616651,1708452660882,-500.0,0.00047397,7]
[314616652,1708452660891,-500.0,0.00047397,30]
[314616653,1708452660901,-526.27,0.00047397,30]
[314616654,1708452660911,-500.0,0.00047397,30]
[314616655,1708452660920,-842.0,0.00047397,30]
[314616656,1708452660930,-500.0,0.00047397,30]
[314616657,1708452660939,-500.0,0.00047397,30]
[314616658,1708452660948,-500.0,0.00047397,30]
[314616659,1708452660958,-500.0,0.00047397,30]
[314616660,1708452660967,-500.0,0.00047397,30]
[314616661,1708452660977,-500.0,0.00047397,30]
[314616662,1708452660987,-500.0,0.00047397,30]
[314616663,1708452660996,-500.0,0.00047397,30]
[314616664,1708452661006,-500.0,0.00047397,30]
[314616665,1708452661018,-500.0,0.00047397,30]
[314616666,1708452661028,-500.0,0.00047397,30]
[314616667,1708452661038,-290.65398735,0.00047397,30]
[314616668,1708452661047,-604.24,0.00047397,30]
[314616669,1708452661057,-500.0,0.00047397,30]
[314616670,1708452661066,-500.0,0.00047397,30]
[314616671,1708452661075,-1531.69,0.00047397,30]
[314616672,1708452661084,-500.0,0.00047397,30]
[314616673,1708452661094,-500.0,0.00047397,30]
[314616674,1708452661104,-500.0,0.00047397,30]
[314616675,1708452661113,-500.0,0.00047397,30]
[314616676,1708452661122,-500.0,0.00047397,30]
[314616677,1708452661131,-644.18961744,0.00047397,30]
[314616678,1708452661141,-500.0,0.00047397,30]
[314616679,1708452661150,-554.24,0.00047397,30]
[314616680,1708452661159,-500.0,0.00047397,30]
[314616681,1708452661167,-1187.08,0.00047397,30]
[314616682,1708452661177,-500.0,0.00047397,30]
[314616683,1708452661186,-590.61,0.00047397,30]
[314616684,1708452661196,-500.0,0.00047397,30]
[314616685,1708452661205,-500.0,0.00047397,30]
[314616686,1708452661214,-184.44,0.00047397,30]
[314616687,1708452661223,-1113.24,0.00047397,30]
[314616688,1708452661232,-500.0,0.00047397,30]
[314616689,1708452661242,-741.96,0.00047397,30]
[314616690,1708452661251,-500.0,0.00047397,30]
[314616691,1708452661263,-500.0,0.00047397,30]
[314616692,1708452661272,-500.0,0.00047397,30]
[314616693,1708452661282,-712.06,0.00047397,30]
[314616694,1708452661290,-500.0,0.00047397,30]
[314616695,1708452661299,-500.0,0.00047397,30]
[314616696,1708452661308,-500.0,0.00047397,30]
[314616697,1708452661317,-500.0,0.00047397,30]
[314616698,1708452661325,-500.0,0.00047397,30]
[314616699,1708452661335,-500.0,0.00047397,30]
[314616700,1708452661344,-500.0,0.00047397,30]
[314616701,1708452661353,-687.46,0.00047397,30]
[314616702,1708452661362,-500.0,0.00047397,30]
[314616703,1708452661372,-500.0,0.00047397,30]
[314616704,1708452661381,-594.52,0.00047397,30]
[314616705,1708452661390,-500.0,0.00047397,30]
[314616706,1708452661399,-1925.25,0.00047397,30]
[314616707,1708452661407,-500.0,0.00047397,30]
[314616708,1708452661416,-514.14,0.00047397,30]
[314616709,1708452661425,-690.73,0.00047397,30]
[314616710,1708452661434,-500.0,0.00047397,30]
[314616711,1708452661442,-500.0,0.00047397,30]
[314616712,1708452661451,-500.0,0.00047397,30]
[314616713,1708452661459,-500.0,0.00047397,30]
[314616714,1708452661468,-500.0,0.00047397,30]
[314616715,1708452661477,-500.0,0.00047397,30]
[314616716,1708452661486,-2199.96,0.00047397,30]
[314616717,1708452661494,-500.0,0.00047397,30]
[314616718,1708452661503,-500.0,0.00047397,30]
[314616719,1708452661513,-500.0,0.00047397,30]
[314616720,1708452661522,-500.0,0.00047397,30]
[314616721,1708452661531,-500.0,0.00047397,30]
[314616722,1708452661540,-500.0,0.00047397,30]
[314616723,1708452661549,-808.96,0.00047397,30]
[314616724,1708452661558,-500.0,0.00047397,30]
[314616725,1708452661567,-500.0,0.00047397,30]
[314616726,1708452661576,-682.15,0.00047397,30]
[314616727,1708452661585,-500.0,0.00047397,30]
[314616728,1708452661594,-500.0,0.00047397,30]
[314616729,1708452661603,-672.18,0.00047397,30]
[314616730,1708452661611,-500.0,0.00047397,30]
[314616731,1708452661620,-500.0,0.00047397,30]
[314616732,1708452661629,-500.0,0.00047397,30]
[314616733,1708452661638,-618.01,0.00047397,30]
[314616734,1708452661647,-500.0,0.00047397,30]
[314616735,1708452661656,-743.51,0.00047397,30]
[314616736,1708452661665,-500.0,0.00047397,30]
[314616737,1708452661674,-500.0,0.00047397,30]
[314616738,1708452661684,-500.0,0.00047397,30]
[314616739,1708452661693,-500.0,0.00047397,30]
[314616740,1708452661703,-500.0,0.00047397,30]
[314616741,1708452661712,-500.0,0.00047397,30]
[314616742,1708452661721,-500.0,0.00047397,30]
[314616743,1708452661731,-1013.13,0.00047397,30]
[314616744,1708452661740,-500.0,0.00047397,30]
[314616745,1708452661750,-500.0,0.00047397,30]
[314616746,1708452661759,-500.0,0.00047397,30]
[314616747,1708452661770,-500.0,0.00047397,30]
[314616748,1708452661779,-500.0,0.00047397,30]
[314616749,1708452661788,-500.0,0.00047397,30]
[314616750,1708452661798,-1587.43,0.00047397,30]
[314616751,1708452661807,-500.0,0.00047397,30]
[314616752,1708452661817,-1846.39,0.00047397,30]
[314616753,1708452661826,-887.43,0.00047397,30]
[314616754,1708452661835,-500.0,0.00047397,30]
[314616755,1708452661844,-2395.62,0.00047397,30]
[314616756,1708452661853,-601.7,0.00047397,30]
[314616757,1708452661862,-500.0,0.00047397,30]
[314616758,1708452661871,-500.0,0.00047397,30]
[314616759,1708452661881,-500.0,0.00047397,30]
[314616760,1708452661890,-500.0,0.00047397,30]
[314616761,1708452661900,-722.33,0.00047397,30]
[314616762,1708452661909,-500.0,0.00047397,30]
[314616763,1708452661919,-500.0,0.00047397,30]
[314616764,1708452661928,-500.0,0.00047397,30]
[314616765,1708452661937,-500.0,0.00047397,30]
[314616766,1708452661946,-500.0,0.00047397,30]
[314616767,1708452661957,-643.59,0.00047397,30]
[314616768,1708452661966,-500.0,0.00047397,30]
[314616769,1708452661976,-500.0,0.00047397,30]
[314616770,1708452661986,-500.0,0.00047397,30]
[314616771,1708452661997,-500.0,0.00047397,30]
[314616772,1708452662007,-500.0,0.00047397,30]
[314616773,1708452662018,-500.0,0.00047397,30]
[314616774,1708452662031,-512.73591077,0.00047397,30]
[314616775,1708452662042,-500.0,0.00047397,30]
[314616776,1708452662052,-617.51,0.00047397,30]
[314616777,1708452662062,-500.0,0.00047397,30]
[314616778,1708452662071,-500.0,0.00047397,30]
[314616779,1708452662080,-309.0,0.00047397,30]
[314616780,1708452662090,-500.0,0.00047397,30]
[314616781,1708452662099,-988.88,0.00047397,30]
[314616782,1708452662109,-500.0,0.00047397,30]
[314616783,1708452662119,-500.0,0.00047397,30]
[314616784,1708452662128,-500.0,0.00047397,30]
[314616785,1708452662138,-500.0,0.00047397,30]
[314616786,1708452662147,-530.37,0.00047397,30]
[314616787,1708452662157,-500.0,0.00047397,30]
[314616788,1708452662166,-500.0,0.00047397,30]
[314616789,1708452662175,-5170.07,0.00047397,30]
[314616790,1708452662185,-1466.17,0.00047397,30]
[314616791,1708452662194,-394.18,0.00047397,30]
[314616792,1708452662204,-500.0,0.00047397,30]
[314616793,1708452662214,-500.0,0.00047397,30]
[314616794,1708452662225,-500.0,0.00047397,30]
[314616795,1708452662235,-161.82,0.00047397,30]
[314616796,1708452662244,-603.06,0.00047397,30]
[314616797,1708452662254,-3271.51,0.00047397,30]
[314616798,1708452662265,-500.0,0.00047397,30]
[314616799,1708452662274,-1104.04,0.00047397,30]
[314616800,1708452662284,-203.51,0.00047397,30]
[314616801,1708452662292,-1022.68662185,0.00047407,13]
[314616802,1708452662301,-1235.0,0.0004752,30]
[314616803,1708452662311,-981.77371599,0.00047546,5]
[314616804,1708452662320,-151.0,0.00047575,30]
[314616805,1708452662330,-602.76,0.0004759,30]
[314616806,1708452662340,-602.76,0.0004759,30]
[314616807,1708452662350,-408.30509859,0.00047671,7]
[314616808,1708452662359,-355.11,0.00047671,30]
[314616809,1708452662368,-500.0,0.00047671,30]
[314616810,1708452662378,-500.0,0.00047671,30]
[314616811,1708452662387,-642.3,0.00047671,30]
[314616812,1708452662396,-500.0,0.00047671,30]
[314616813,1708452662405,-500.0,0.00047671,30]
[314616814,1708452662415,-501.63,0.00047671,30]
[314616815,1708452662424,-666.0,0.00047671,30]
[314616816,1708452662433,-666.0,0.00047671,30]
[314616817,1708452662443,-308.05,0.00047671,30]
[314616818,1708452662452,-500.0,0.00047671,30]
[314616819,1708452662461,-500.0,0.00047671,30]
[314616820,1708452662470,-500.0,0.00047671,30]
[314616821,1708452662479,-500.0,0.00047671,30]
[314616822,1708452662489,-500.0,0.00047671,30]
[314616823,1708452662498,-500.0,0.00047671,30]
[314616824,1708452662507,-500.0,0.00047671,30]
[314616825,1708452662518,-500.0,0.00047671,30]
[314616826,1708452662529,-500.0,0.00047671,30]
[314616827,1708452662539,-615.74,0.00047671,30]
[314616828,1708452662548,-500.0,0.00047671,30]
[314616829,1708452662557,-500.0,0.00047671,30]
[314616830,1708452662566,-500.0,0.00047671,30]
[314616831,1708452662575,-500.0,0.00047671,30]
[314616832,1708452662585,-375.16,0.00047671,2]
[314616833,1708452662594,-500.0,0.00047671,30]
[314616834,1708452662604,-500.0,0.00047671,30]
[314616835,1708452662613,-500.0,0.00047671,2]
[314616836,1708452662622,-218.61351315,0.00047671,30]
[314616837,1708452662632,-342.4,0.00047671,30]
[314616838,1708452662642,-500.0,0.00047671,30]
[314616839,1708452662652,-583.32,0.00047671,30]
[314616840,1708452662661,-500.0,0.00047671,30]
[314616841,1708452662670,-266.16,0.00047671,30]
[314616842,1708452662679,-500.0,0.00047671,30]
[314616843,1708452662689,-500.0,0.00047671,30]
[314616844,1708452662698,-500.0,0.00047671,30]
[314616845,1708452662708,-320.06,0.00047671,30]
[314616846,1708452662857,-392.22,0.00047671,30]
[314616847,1708452662867,-500.0,0.00047671,30]
[314616848,1708452662876,-381.68389274,0.00047671,30]
[314616849,1708452662885,-218.62,0.00047671,30]
[314616850,1708452662895,-500.0,0.00047671,30]
[314616851,1708452662905,-500.0,0.00047671,30]
[314616852,1708452662914,-500.0,0.00047671,30]
[314616853,1708452662923,-500.0,0.00047671,30]
[314616854,1708452662932,-500.0,0.00047671,30]
[314616855,1708452662942,-712.99,0.00047671,30]
[314616856,1708452662951,-500.0,0.00047671,30]
[314616857,1708452662961,-500.0,0.00047671,30]
[314616858,1708452662970,-500.0,0.00047671,30]
[314616859,1708452662979,-295.43473574,0.00047671,30]
[314616860,1708452662989,-1447.92,0.00047671,30]
[314616861,1708452662999,-500.0,0.00047671,30]
[314616862,1708452663009,-500.0,0.00047671,30]
[314616863,1708452663023,-763.46,0.00047671,30]
[314616864,1708452663033,-500.0,0.00047671,30]
[314616865,1708452663043,-500.0,0.00047671,30]
[314616866,1708452663053,-500.0,0.00047671,30]
[314616867,1708452663062,-500.0,0.00047671,30]
[314616868,1708452663072,-500.0,0.00047671,30]
[314616869,1708452663081,-500.0,0.00047671,30]
[314616870,1708452663092,-500.0,0.00047671,30]
[314616871,1708452663102,-565.12,0.00047671,7]
[314616872,1708452663112,-500.0,0.00047671,30]
[314616873,1708452663121,-526.27,0.00047671,30]
[314616874,1708452663130,-500.0,0.00047671,30]
[314616875,1708452663140,-842.0,0.00047671,30]
[314616876,1708452663149,-500.0,0.00047671,30]
[314616877,1708452663158,-500.0,0.00047671,30]
[314616878,1708452663167,-500.0,0.00047671,30]
[314616879,1708452663175,-500.0,0.00047671,30]
[314616880,1708452663185,-500.0,0.00047671,30]
[314616881,1708452663194,-500.0,0.00047671,30]
[314616882,1708452663203,-497.12,0.00047671,30]
[314616883,1708452663212,-500.0,0.00047671,30]
[314616884,1708452663222,-500.0,0.00047671,30]
[314616885,1708452663231,-500.0,0.00047671,30]
[314616886,1708452663241,-152.58,0.00047671,30]
[314616887,1708452663250,-500.0,0.00047671,30]
[314616888,1708452663259,-500.0,0.00047671,30]
[314616889,1708452663272,-1531.69,0.00047671,30]
[314616890,1708452663282,-500.0,0.00047671,30]
[314616891,1708452663291,-500.0,0.00047671,30]
[314616892,1708452663300,-500.0,0.00047671,30]
[314616893,1708452663309,-500.0,0.00047671,30]
[314616894,1708452663319,-500.0,0.00047671,30]
[314616895,1708452663329,-500.0,0.00047671,30]
[314616896,1708452663340,-554.24,0.00047671,30]
[314616897,1708452663351,-500.0,0.00047671,30]
[314616898,1708452663361,-1187.08,0.00047671,30]
[314616899,1708452663372,-500.0,0.00047671,30]
[314616900,1708452663381,-590.61,0.00047671,30]
[314616901,1708452663391,-500.0,0.00047671,30]
[314616902,1708452663401,-500.0,0.00047671,30]
[314616903,1708452663411,-1113.24,0.00047671,30]
[314616904,1708452663421,-500.0,0.00047671,30]
[314616905,1708452663430,-741.96,0.00047671,30]
[314616906,1708452663439,-500.0,0.00047671,30]
[314616907,1708452663449,-500.0,0.00047671,30]
[314616908,1708452663459,-500.0,0.00047671,30]
[314616909,1708452663468,-712.06,0.00047671,30]
[314616910,1708452663478,-500.0,0.00047671,30]
[314616911,1708452663487,-494.87667124,0.00047671,30]
[314616912,1708452663496,-500.0,0.00047671,30]
[314616913,1708452663506,-500.0,0.00047671,30]
[314616914,1708452663519,-500.0,0.00047671,30]
[314616915,1708452663529,-500.0,0.00047671,30]
[314616916,1708452663538,-500.0,0.00047671,30]
[314616917,1708452663548,-687.46,0.00047671,30]
[314616918,1708452663557,-500.0,0.00047671,30]
[314616919,1708452663567,-500.0,0.00047671,30]
[314616920,1708452663578,-594.52,0.00047671,30]
[314616921,1708452663587,-500.0,0.00047671,30]
[314616922,1708452663598,-1925.25,0.00047671,30]
[314616923,1708452663608,-500.0,0.00047671,30]
[314616924,1708452663618,-514.14,0.00047671,30]
[314616925,1708452663627,-690.73,0.00047671,30]
[314616926,1708452663637,-500.0,0.00047671,30]
[314616927,1708452663647,-500.0,0.00047671,30]
[314616928,1708452663656,-500.0,0.00047671,30]
[314616929,1708452663666,-500.0,0.00047671,30]
[314616930,1708452663675,-500.0,0.00047671,30]
[314616931,1708452663684,-500.0,0.00047671,30]
[314616932,1708452663694,-2199.96,0.00047671,30]
[314616933,1708452663703,-500.0,0.00047671,30]
[314616934,1708452663712,-500.0,0.00047671,30]
[314616935,1708452663722,-500.0,0.00047671,30]
[314616936,1708452663731,-500.0,0.00047671,30]
[314616937,1708452663740,-500.0,0.00047671,30]
[314616938,1708452663751,-500.0,0.00047671,30]
[314616939,1708452663760,-808.96,0.00047671,30]
[314616940,1708452663772,-500.0,0.00047671,30]
[314616941,1708452663781,-500.0,0.00047671,30]
[314616942,1708452663790,-682.15,0.00047671,30]
[314616943,1708452663800,-500.0,0.00047671,30]
[314616944,1708452663809,-672.18,0.00047671,30]
[314616945,1708452663818,-500.0,0.00047671,30]
[314616946,1708452663827,-500.0,0.00047671,30]
[314616947,1708452663837,-641.29536307,0.00047671,30]
[314616948,1708452663846,-618.01,0.00047671,30]
[314616949,1708452663855,-500.0,0.00047671,30]
[314616950,1708452663865,-743.51,0.00047671,30]
[314616951,1708452663874,-500.0,0.00047671,30]
[314616952,1708452663883,-500.0,0.00047671,30]
[314616953,1708452663892,-500.0,0.00047671,30]
[314616954,1708452663901,-500.0,0.00047671,30]
[314616955,1708452663911,-500.0,0.00047671,30]
[314616956,1708452663920,-500.0,0.00047671,30]
[314616957,1708452663929,-1013.13,0.00047671,30]
[314616958,1708452663938,-500.0,0.00047671,30]
[314616959,1708452663948,-500.0,0.00047671,30]
[314616960,1708452663957,-500.0,0.00047671,30]
[314616961,1708452663967,-500.0,0.00047671,30]
[314616962,1708452663976,-500.0,0.00047671,30]
[314616963,1708452663985,-500.0,0.00047671,30]
[314616964,1708452663995,-1587.43,0.00047671,30]
[314616965,1708452664006,-199.5,0.00047671,30]
[314616966,1708452664017,-1846.39,0.00047671,30]
[314616967,1708452664026,-887.43,0.00047671,30]
[314616968,1708452664035,-500.0,0.00047671,30]
[314616969,1708452664045,-2395.62,0.00047671,30]
[314616970,1708452664054,-601.7,0.00047671,30]
[314616971,1708452664063,-500.0,0.00047671,30]
[314616972,1708452664073,-500.0,0.00047671,30]
[314616973,1708452664082,-500.0,0.00047671,30]
[314616974,1708452664092,-500.0,0.00047671,30]
[314616975,1708452664102,-722.33,0.00047671,30]
[314616976,1708452664111,-500.0,0.00047671,30]
[314616977,1708452664120,-500.0,0.00047671,30]
[314616978,1708452664129,-500.0,0.00047671,30]
[314616979,1708452664139,-157.44,0.00047671,30]
[314616980,1708452664148,-500.0,0.00047671,30]
[314616981,1708452664158,-643.59,0.00047671,30]
[314616982,1708452664167,-500.0,0.00047671,30]
[314616983,1708452664176,-500.0,0.00047671,30]
[314616984,1708452664186,-500.0,0.00047671,30]
[314616985,1708452664195,-500.0,0.00047671,30]
[314616986,1708452664204,-500.0,0.00047671,30]
[314616987,1708452664214,-500.0,0.00047671,30]
[314616988,1708452664223,-500.0,0.00047671,30]
[314616989,1708452664233,-500.0,0.00047671,30]
[314616990,1708452664242,-500.0,0.00047671,30]
[314616991,1708452664251,-500.0,0.00047671,30]
[314616992,1708452664261,-988.88,0.00047671,30]
[314616993,1708452664272,-500.0,0.00047671,30]
[314616994,1708452664281,-500.0,0.00047671,30]
[314616995,1708452664291,-500.0,0.00047671,30]
[314616996,1708452664300,-500.0,0.00047671,30]
[314616997,1708452664309,-530.37,0.00047671,30]
[314616998,1708452664319,-500.0,0.00047671,30]
[314616999,1708452664329,-5170.07,0.00047671,30]
[314617000,1708452664339,-500.0,0.00047671,30]
[314617001,1708452664349,-1466.17,0.00047671,30]
[314617002,1708452664360,-500.0,0.00047671,30]
[314617003,1708452664369,-500.0,0.00047671,30]
[314617004,1708452664379,-3271.51,0.00047671,30]
[314617005,1708452664388,-500.0,0.00047671,30]
[314617006,1708452664398,-1104.04,0.00047671,30]
[314617007,1708452664407,-1089.27391387,0.000477,60]
[314617008,1708452664417,-1369.0,0.00047727,2]
[314617009,1708452664426,-1969.691,0.00047727,2]
[314617010,1708452664435,-2768.037,0.00047727,2]
[314617011,1708452664444,-455.579,0.00047727,2]
[314617012,1708452664454,-880.0,0.00047727,2]
[314617013,1708452664463,-660.667,0.00047727,2]
[314617014,1708452664472,-953.0,0.00047727,2]
[314617015,1708452664481,-216.0,0.00047727,2]
[314617016,1708452664490,-1256.0,0.00047727,2]
[314617017,1708452664499,-1231.0,0.00047727,2]
[314617018,1708452664509,-858.0,0.00047727,2]
[314617019,1708452664520,-261.071,0.00047727,2]
[314617020,1708452664530,-429.0,0.00047727,2]
[314617021,1708452664539,-1012.214,0.00047727,2]
[314617022,1708452664549,-2871.0,0.00047727,2]
[314617023,1708452664558,-1138.0,0.00047727,2]
[314617024,1708452664567,-343.0,0.00047727,2]
[314617025,1708452664577,-321.0,0.00047727,2]
[314617026,1708452664586,-150.0,0.00047727,2]
[314617027,1708452664595,-454.0,0.00047727,2]
[314617028,1708452664605,-3210.59952892,0.00047741,9]
[314617029,1708452664614,-892.15812235,0.00047746,7]
[314617030,1708452664623,-13239.82337449,0.000478,30]
[314617031,1708452664632,-602.76,0.00047863,30]
[314617032,1708452664641,-602.76,0.00047863,30]
[314617033,1708452664650,-1997.28262212,0.00047899,5]
[314617034,1708452664659,-2842.33585424,0.00047904,23]
[314617035,1708452664668,-429.41056187,0.00047945,30]
[314617036,1708452664678,-176.28275937,0.00047945,30]
[314617037,1708452664686,-642.3,0.00047945,30]
[314617038,1708452664695,-500.0,0.00047945,30]
[314617039,1708452664705,-500.0,0.00047945,30]
[314617040,1708452664713,-501.63,0.00047945,30]
[314617041,1708452664722,-500.0,0.00047945,30]
[314617042,1708452664731,-500.0,0.00047945,30]
[314617043,1708452664740,-443.01,0.00047945,30]
[314617044,1708452664749,-500.0,0.00047945,30]
[314617045,1708452664758,-500.0,0.00047945,30]
[314617046,1708452664769,-484.0780667,0.00047945,30]
[314617047,1708452664778,-468.08,0.00047945,30]
[314617048,1708452664788,-500.0,0.00047945,30]
[314617049,1708452664797,-500.0,0.00047945,30]
[314617050,1708452664807,-500.0,0.00047945,30]
[314617051,1708452664816,-361.67,0.00047945,30]
[314617052,1708452664825,-500.0,0.00047945,30]
[314617053,1708452664834,-270.99,0.00047945,30]
[314617054,1708452664844,-500.0,0.00047945,2]
[314617055,1708452664854,-500.0,0.00047945,30]
[314617056,1708452664863,-500.0,0.00047945,30]
[314617057,1708452664872,-500.0,0.00047945,30]
[314617058,1708452664881,-198.71,0.00047945,30]
[314617059,1708452664890,-500.0,0.00047945,30]
[314617060,1708452664900,-500.0,0.00047945,30]
[314617061,1708452664909,-408.23845924,0.00047945,30]
[314617062,1708452664918,-500.0,0.00047945,30]
[314617063,1708452664927,-500.0,0.00047945,30]
[314617064,1708452664936,-712.99,0.00047945,30]
[314617065,1708452664946,-500.0,0.00047945,30]
[314617066,1708452664955,-233.04,0.00047945,30]
[314617067,1708452664964,-500.0,0.00047945,30]
[314617068,1708452664973,-151.0,0.00047945,14]
[314617069,1708452664982,-1447.92,0.00047945,30]
[314617070,1708452664991,-500.0,0.00047945,30]
[314617071,1708452665002,-253.06,0.00047945,30]
[314617072,1708452665011,-763.46,0.00047945,30]
[314617073,1708452665025,-500.0,0.00047945,30]
[314617074,1708452665034,-500.0,0.00047945,30]
[314617075,1708452665044,-261.4,0.00047945,30]
[314617076,1708452665054,-483.9106173,0.00047945,30]
[314617077,1708452665064,-500.0,0.00047945,30]